fUSD/lending_fUSD_20240720
["ID","MTS","AMOUNT","RATE_DAILY","PERIOD"]
[332692581,1721452289021,-500.0,0.00033424,14]
[332692582,1721452289030,-500.0,0.00033424,14]
[332692583,1721452289039,-500.0,0.00033424,14]
[332692584,1721452289049,-513.51332668,0.00033424,14]
[332692585,1721452289058,-500.0,0.00033424,14]
[332692586,1721452289067,-500.0,0.00033424,14]
[332692587,1721452289076,-500.0,0.00033424,14]
[332692588,1721452289085,-1034.3,0.00033424,14]
[332692589,1721452289095,-500.0,0.00033424,14]
[332692590,1721452289104,-3294.129612,0.00033424,7]
[332692591,1721452289114,-487.92743805,0.00033424,14]
[332692592,1721452289124,-959.71,0.00033424,14]
[332692593,1721452289133,-500.0,0.00033424,14]
[332692594,1721452289142,-591.51,0.00033424,14]
[332692595,1721452289151,-953.56,0.00033424,14]
[332692596,1721452289161,-500.0,0.00033424,14]
[332692597,1721452289170,-500.0,0.00033424,14]
[332692598,1721452289180,-500.0,0.00033424,14]
[332692599,1721452289190,-500.0,0.00033424,14]
[332692600,1721452289199,-500.0,0.00033424,14]
[332692601,1721452289208,-3294.129612,0.00033424,7]
[332692602,1721452289218,-2033.65,0.00033424,14]
[332692603,1721452289230,-809.72,0.00033424,14]
[332692604,1721452289239,-514.34831685,0.00033424,14]
[332692605,1721452289248,-504.4299777,0.00033424,14]
[332692606,1721452289258,-500.0,0.00033424,14]
[332692607,1721452289267,-227.545334,0.00033424,7]
[332692608,1721452289276,-520.1749181,0.00033424,14]
[332692609,1721452289286,-500.0,0.00033424,14]
[332692610,1721452289295,-500.0,0.00033424,14]
[332692611,1721452289304,-1937.31,0.00033424,14]
[332692612,1721452289315,-500.0,0.00033424,14]
[332692613,1721452289325,-508.30652334,0.00033424,14]
[332692614,1721452289334,-626.01,0.00033424,14]
[332692615,1721452289344,-227.545334,0.00033424,7]
[332692616,1721452289353,-694.93,0.00033424,14]
[332692617,1721452289362,-500.0,0.00033424,14]
[332692618,1721452289372,-813.05,0.00033424,14]
[332692619,1721452289382,-501.48026937,0.00033424,14]
[332692620,1721452289391,-1259.04,0.00033424,14]
[332692621,1721452289401,-509.51079546,0.00033424,14]
[332692622,1721452289410,-1232.51,0.00033424,14]
[332692623,1721452289420,-506.42099493,0.00033424,14]
[332692624,1721452289430,-496.63779938,0.00033424,14]
[332692625,1721452289440,-561.68,0.00033424,14]
[332692626,1721452289449,-509.8255837,0.00033424,14]
[332692627,1721452289632,-500.0,0.00033424,14]
[332692628,1721452289642,-1006.17,0.00033424,14]
[332692629,1721452289652,-500.0,0.00033424,14]
[332692630,1721452289662,-500.0,0.00033424,14]
[332692631,1721452289672,-500.0,0.00033424,14]
[332692632,1721452289682,-884.79,0.00033424,14]
[332692633,1721452289691,-500.0,0.00033424,14]
[332692634,1721452289700,-501.23188125,0.00033424,14]
[332692635,1721452289709,-603.05,0.00033424,14]
[332692636,1721452289719,-500.0,0.00033424,14]
[332692637,1721452289728,-1733.33,0.00033424,14]
[332692638,1721452289737,-173.629087,0.00033424,7]
[332692639,1721452289746,-2149.91,0.00033424,14]
[332692640,1721452289756,-500.0,0.00033424,14]
[332692641,1721452289766,-500.95494684,0.00033424,14]
[332692642,1721452289775,-500.0,0.00033424,14]
[332692643,1721452289784,-500.0,0.00033424,14]
[332692644,1721452289793,-500.0,0.00033424,14]
[332692645,1721452289803,-505.93946912,0.00033424,14]
[332692646,1721452289812,-500.0,0.00033424,14]
[332692647,1721452289823,-502.03081319,0.00033424,14]
[332692648,1721452289832,-1300.74,0.00033424,14]
[332692649,1721452289841,-173.629087,0.00033424,7]
[332692650,1721452289855,-500.0,0.00033424,14]
[332692651,1721452289864,-500.0,0.00033424,14]
[332692652,1721452289873,-500.0,0.00033424,14]
[332692653,1721452289883,-500.0,0.00033424,14]
[332692654,1721452289892,-500.0,0.00033424,14]
[332692655,1721452289901,-506.70179353,0.00033424,14]
[332692656,1721452289910,-500.0,0.00033424,14]
[332692657,1721452289919,-1111.25,0.00033424,14]
[332692658,1721452289929,-292.190895,0.00033424,7]
[332692659,1721452289939,-500.0,0.00033424,14]
[332692660,1721452289948,-500.0,0.00033424,14]
[332692661,1721452289958,-512.2595808,0.00033424,14]
[332692662,1721452289967,-500.0,0.00033424,14]
[332692663,1721452289977,-500.0,0.00033424,14]
[332692664,1721452289986,-500.0,0.00033424,14]
[332692665,1721452289995,-151.0,0.00033424,7]
[332692666,1721452290005,-292.190895,0.00033424,7]
[332692667,1721452290014,-500.0,0.00033424,14]
[332692668,1721452290024,-500.0,0.00033424,14]
[332692669,1721452290034,-502.22029331,0.00033424,14]
[332692670,1721452290043,-500.0,0.00033424,14]
[332692671,1721452290052,-500.0,0.00033424,14]
[332692672,1721452290061,-501.08726878,0.00033424,14]
[332692673,1721452290071,-500.0,0.00033424,14]
[332692674,1721452290080,-500.0,0.00033424,14]
[332692675,1721452290089,-391.55139226,0.00033424,14]
[332692676,1721452290101,-563.93,0.00033424,14]
[332692677,1721452290110,-1238.04,0.00033424,14]
[332692678,1721452290119,-1017.18,0.00033424,14]
[332692679,1721452290129,-500.0,0.00033424,14]
[332692680,1721452290138,-300.0,0.00033424,14]
[332692681,1721452290147,-500.0,0.00033424,14]
[332692682,1721452290156,-512.17,0.00033424,14]
[332692683,1721452290166,-151.0,0.00033424,7]
[332692684,1721452290176,-502.27171495,0.00033424,14]
[332692685,1721452290186,-536.26623222,0.00033424,14]
[332692686,1721452290195,-647.92,0.00033424,14]
[332692687,1721452290205,-500.0,0.00033424,14]
[332692688,1721452290215,-500.0,0.00033424,14]
[332692689,1721452290225,-504.04414065,0.00033424,14]
[332692690,1721452290234,-692.06,0.00033424,14]
[332692691,1721452290243,-500.0,0.00033424,14]
[332692692,1721452290252,-1357.97,0.00033424,14]
[332692693,1721452290262,-500.0,0.00033424,14]
[332692694,1721452290271,-500.0,0.00033424,14]
[332692695,1721452290280,-763.87,0.00033424,14]
[332692696,1721452290289,-502.88191491,0.00033424,14]
[332692697,1721452290298,-500.0,0.00033424,14]
[332692698,1721452290308,-500.0,0.00033424,14]
[332692699,1721452290318,-1000.0,0.00033424,14]
[332692700,1721452290327,-637.96,0.00033424,14]
[332692701,1721452290337,-572.48,0.00033424,14]
[332692702,1721452290349,-508.23847517,0.00033424,14]
[332692703,1721452290359,-1046.36,0.00033424,14]
[332692704,1721452290369,-234.22,0.00033424,14]
[332692705,1721452290378,-501.96965409,0.00033424,14]
[332692706,1721452290389,-691.25,0.00033424,14]
[332692707,1721452290398,-512.92565903,0.00033424,14]
[332692708,1721452290407,-500.0,0.00033424,14]
[332692709,1721452290417,-500.0,0.00033424,14]
[332692710,1721452290426,-500.0,0.00033424,14]
[332692711,1721452290435,-1816.66,0.00033424,14]
[332692712,1721452290445,-511.58678209,0.00033424,14]
[332692713,1721452290455,-500.0,0.00033424,14]
[332692714,1721452290464,-500.0,0.00033424,14]
[332692715,1721452290474,-500.0,0.00033424,14]
[332692716,1721452290484,-500.0,0.00033424,14]
[332692717,1721452290493,-500.0,0.00033424,14]
[332692718,1721452290502,-500.0,0.00033424,14]
[332692719,1721452290511,-500.0,0.00033424,14]
[332692720,1721452290520,-500.0,0.00033424,14]
[332692721,1721452290530,-500.0,0.00033424,14]
[332692722,1721452290540,-500.0,0.00033424,14]
[332692723,1721452290549,-1709.3,0.00033424,14]
[332692724,1721452290559,-520.92747063,0.00033424,14]
[332692725,1721452290569,-525.34997561,0.00033424,14]
[332692726,1721452290579,-937.77,0.00033424,14]
[332692727,1721452290588,-500.0,0.00033424,14]
[332692728,1721452290602,-2311.96,0.00033424,14]
[332692729,1721452290611,-500.0,0.00033424,14]
[332692730,1721452290621,-500.0,0.00033424,14]
[332692731,1721452290631,-977.58,0.00033424,14]
[332692732,1721452290641,-500.0,0.00033424,14]
[332692733,1721452290650,-889.94,0.00033424,14]
[332692734,1721452290659,-537.55059046,0.00033424,14]
[332692735,1721452290668,-500.0,0.00033424,14]
[332692736,1721452290679,-533.29628691,0.00033424,14]
[332692737,1721452290689,-500.0,0.00033424,14]
[332692738,1721452290699,-151.0,0.00033424,7]
[332692739,1721452290709,-500.0,0.00033424,14]
[332692740,1721452290718,-500.0,0.00033424,14]
[332692741,1721452290728,-502.27742722,0.00033424,14]
[332692742,1721452290737,-712.12,0.00033424,14]
[332692743,1721452290747,-2067.19,0.00033424,14]
[332692744,1721452290756,-514.55177142,0.00033424,14]
[332692745,1721452290765,-889.44,0.00033424,14]
[332692746,1721452290775,-520.51753938,0.00033424,14]
[332692747,1721452290784,-528.48,0.00033424,14]
[332692748,1721452290794,-512.52226688,0.00033424,14]
[332692749,1721452290803,-501.6720574,0.00033424,14]
[332692750,1721452290813,-1658.13,0.00033424,14]
[332692751,1721452290824,-500.0,0.00033424,14]
[332692752,1721452290833,-507.7500278,0.00033424,14]
[332692753,1721452290842,-500.0,0.00033424,14]
[332692754,1721452290853,-517.32344376,0.00033424,14]
[332692755,1721452290862,-501.12766363,0.00033424,14]
[332692756,1721452290872,-855.84,0.00033424,2]
[332692757,1721452290881,-596.39269796,0.00033424,14]
[332692758,1721452290891,-513.94186123,0.00033424,14]
[332692759,1721452290900,-500.0,0.00033424,14]
[332692760,1721452290910,-502.391605,0.00033424,14]
[332692761,1721452290919,-500.0,0.00033424,14]
[332692762,1721452290928,-500.0,0.00033424,14]
[332692763,1721452290937,-1063.94,0.00033424,14]
[332692764,1721452290947,-500.0,0.00033424,14]
[332692765,1721452290956,-506.21466637,0.00033424,14]
[332692766,1721452290977,-500.0,0.00033424,14]
[332692767,1721452290994,-500.0,0.00033424,14]
[332692768,1721452291014,-519.3413419,0.00033424,14]
[332692769,1721452291032,-507.00526421,0.00033424,14]
[332692770,1721452291052,-543.29326847,0.00033424,14]
[332692771,1721452291071,-500.0,0.00033424,14]
[332692772,1721452291087,-1046.5,0.00033424,14]
[332692773,1721452291103,-500.0,0.00033424,14]
[332692774,1721452291121,-500.0,0.00033424,14]
[332692775,1721452291140,-507.45779248,0.00033424,14]
[332692776,1721452291155,-1310.39,0.00033424,14]
[332692777,1721452291168,-1401.11,0.00033424,14]
[332692778,1721452291186,-500.0,0.00033424,14]
[332692779,1721452291202,-500.0,0.00033424,14]
[332692780,1721452291216,-501.24678845,0.00033424,14]
[332692781,1721452291231,-509.22319071,0.00033424,14]
[332692782,1721452291246,-500.0,0.00033424,14]
[332692783,1721452291260,-1116.68,0.00033424,14]
[332692784,1721452291275,-510.99774573,0.00033424,14]
[332692785,1721452291289,-500.0,0.00033424,14]
[332692786,1721452291304,-721.49,0.00033424,14]
[332692787,1721452291318,-500.0,0.00033424,14]
[332692788,1721452291333,-1092.3,0.00033424,14]
[332692789,1721452291349,-501.89777851,0.00033424,14]
[332692790,1721452291364,-500.0,0.00033424,14]
[332692791,1721452291382,-500.0,0.00033424,14]
[332692792,1721452291396,-1007.82,0.00033424,14]
[332692793,1721452291412,-500.0,0.00033424,14]
[332692794,1721452291427,-500.0,0.00033424,14]
[332692795,1721452291441,-886.3,0.00033424,14]
[332692796,1721452291455,-500.9451478,0.00033424,14]
[332692797,1721452291470,-964.81,0.00033424,14]
[332692798,1721452291485,-730.04,0.00033424,14]
[332692799,1721452291499,-500.0,0.00033424,14]
[332692800,1721452291514,-501.4725469,0.00033424,14]
[332692801,1721452291529,-500.0,0.00033424,14]
[332692802,1721452291543,-510.93346585,0.00033424,14]
[332692803,1721452291557,-1245.07,0.00033424,14]
[332692804,1721452291571,-514.28497972,0.00033424,14]
[332692805,1721452291585,-500.0,0.00033424,14]
[332692806,1721452291602,-500.0,0.00033424,14]
[332692807,1721452291617,-500.0,0.00033424,14]
[332692808,1721452291631,-502.12749495,0.00033424,14]
[332692809,1721452291646,-151.0,0.00033424,7]
[332692810,1721452291660,-500.0,0.00033424,14]
[332692811,1721452291674,-1347.55,0.00033424,14]
[332692812,1721452291688,-547.50812254,0.00033424,14]
[332692813,1721452291702,-2110.3,0.00033424,14]
[332692814,1721452291717,-1060.23,0.00033424,14]
[332692815,1721452291731,-501.62146411,0.00033424,14]
[332692816,1721452291745,-500.0,0.00033424,14]
[332692817,1721452291759,-500.0,0.00033424,14]
[332692818,1721452291773,-500.0,0.00033424,14]
[332692819,1721452291787,-500.0,0.00033424,14]
[332692820,1721452291802,-501.29285677,0.00033424,14]
[332692821,1721452291817,-676.88,0.00033424,14]
[332692822,1721452291832,-500.0,0.00033424,14]
[332692823,1721452291846,-514.599826,0.00033424,14]
[332692824,1721452291860,-500.0,0.00033424,14]
[332692825,1721452291874,-501.56717378,0.00033424,14]
[332692826,1721452291888,-857.78,0.00033424,14]
[332692827,1721452291902,-1009.09,0.00033424,14]
[332692828,1721452291916,-537.3265001,0.00033424,14]
[332692829,1721452291929,-542.55,0.00033424,14]
[332692830,1721452291945,-500.0,0.00033424,14]
[332692831,1721452291958,-574.29,0.00033424,14]
[332692832,1721452291972,-500.0,0.00033424,14]
[332692833,1721452291986,-500.0,0.00033424,14]
[332692834,1721452292000,-1463.03,0.00033424,14]
[332692835,1721452292013,-501.57476013,0.00033424,14]
[332692836,1721452292028,-500.0,0.00033424,14]
[332692837,1721452292047,-618.39,0.00033424,14]
[332692838,1721452292060,-500.0,0.00033424,14]
[332692839,1721452292075,-1627.07,0.00033424,14]
[332692840,1721452292089,-500.97109047,0.00033424,14]
[332692841,1721452292103,-500.0,0.00033424,14]
[332692842,1721452292118,-500.0,0.00033424,14]
[332692843,1721452292132,-502.22829205,0.00033424,14]
[332692844,1721452292145,-500.0,0.00033424,14]
[332692845,1721452292158,-500.0,0.00033424,14]
[332692846,1721452292172,-500.0,0.00033424,14]
[332692847,1721452292186,-500.0,0.00033424,14]
[332692848,1721452292200,-501.7583711,0.00033424,14]
[332692849,1721452292214,-1578.41,0.00033424,14]
[332692850,1721452292228,-500.0,0.00033424,14]
[332692851,1721452292242,-500.0,0.00033424,14]
[332692852,1721452292257,-769.81,0.00033424,14]
[332692853,1721452292271,-504.4036439,0.00033424,14]
[332692854,1721452292285,-500.85334092,0.00033424,14]
[332692855,1721452292298,-500.0,0.00033424,14]
[332692856,1721452292313,-454.81260908,0.00033424,14]
[332692857,1721452292328,-640.60629939,0.00033424,14]
[332692858,1721452292342,-500.0,0.00033424,14]
[332692859,1721452292357,-500.0,0.00033424,14]
[332692860,1721452292372,-500.0,0.00033424,14]
[332692861,1721452292386,-151.0,0.00033424,7]
[332692862,1721452292401,-1081.1,0.00033424,14]
[332692863,1721452292415,-501.75694545,0.00033424,14]
[332692864,1721452292429,-500.0,0.00033424,14]
[332692865,1721452292444,-250.90496758,0.00033424,14]
[332692866,1721452292458,-2025.51,0.00033424,14]
[332692867,1721452292472,-500.0,0.00033424,14]
[332692868,1721452292487,-1022.1,0.00033424,14]
[332692869,1721452292501,-504.59790983,0.00033424,14]
[332692870,1721452292514,-317.92418219,0.00033424,5]
[332692871,1721452292528,-550.76828071,0.00033424,14]
[332692872,1721452292542,-501.6157084,0.00033424,14]
[332692873,1721452292556,-745.97,0.00033424,14]
[332692874,1721452292571,-511.59105353,0.00033424,14]
[332692875,1721452292585,-207.86981878,0.00033424,14]
[332692876,1721452292601,-500.0,0.00033424,14]
[332692877,1721452292614,-500.0,0.00033424,14]
[332692878,1721452292629,-1297.98,0.00033424,14]
[332692879,1721452292643,-500.0,0.00033424,14]
[332692880,1721452292657,-500.0,0.00033424,14]
[332692881,1721452292671,-500.0,0.00033424,14]
[332692882,1721452292685,-683.77,0.00033424,14]
[332692883,1721452292699,-500.0,0.00033424,14]
[332692884,1721452292713,-500.0,0.00033424,14]
[332692885,1721452292726,-675.93,0.00033424,14]
[332692886,1721452292741,-500.0,0.00033424,14]
[332692887,1721452292754,-502.87654675,0.00033424,14]
[332692888,1721452292768,-500.0,0.00033424,14]
[332692889,1721452292782,-500.0,0.00033424,14]
[332692890,1721452292796,-500.0,0.00033424,14]
[332692891,1721452292810,-4023.17,0.00033424,14]
[332692892,1721452292824,-431.50945637,0.00033424,14]
[332692893,1721452292838,-500.0,0.00033424,14]
[332692894,1721452292852,-500.0,0.00033424,14]
[332692895,1721452292867,-500.0,0.00033424,14]
[332692896,1721452292880,-1158.55,0.00033424,14]
[332692897,1721452292895,-520.82254313,0.00033424,14]
[332692898,1721452292909,-505.21840129,0.00033424,14]
[332692899,1721452292924,-500.0,0.00033424,14]
[332692900,1721452293223,-512.75692595,0.00033424,14]
[332692901,1721452293251,-501.61,0.00033424,14]
[332692902,1721452293261,-500.0,0.00033424,14]
[332692903,1721452293271,-500.0,0.00033424,14]
[332692904,1721452293281,-501.45944862,0.00033424,14]
[332692905,1721452293290,-1096.49,0.00033424,14]
[332692906,1721452293300,-500.0,0.00033424,14]
[332692907,1721452293310,-500.0,0.00033424,14]
[332692908,1721452293319,-500.0,0.00033424,14]
[332692909,1721452293329,-500.0,0.00033424,14]
[332692910,1721452293339,-500.0,0.00033424,14]
[332692911,1721452293347,-500.0,0.00033424,14]
[332692912,1721452293357,-597.24,0.00033424,14]
[332692913,1721452293367,-500.0,0.00033424,14]
[332692914,1721452293377,-500.0,0.00033424,14]
[332692915,1721452293386,-500.0,0.00033424,14]
[332692916,1721452293396,-500.0,0.00033424,14]
[332692917,1721452293405,-500.0,0.00033424,14]
[332692918,1721452293415,-500.0,0.00033424,14]
[332692919,1721452293424,-1126.75,0.00033424,14]
[332692920,1721452293434,-500.0,0.00033424,14]
[332692921,1721452293443,-500.0,0.00033424,14]
[332692922,1721452293453,-500.0,0.00033424,14]
[332692923,1721452293463,-500.0,0.00033424,14]
[332692924,1721452293472,-512.78926314,0.00033424,14]
[332692925,1721452293482,-500.0,0.00033424,14]
[332692926,1721452293492,-500.0,0.00033424,14]
[332692927,1721452293502,-500.0,0.00033424,14]
[332692928,1721452293512,-500.0,0.00033424,14]
[332692929,1721452293521,-500.0,0.00033424,14]
[332692930,1721452293531,-500.0,0.00033424,14]
[332692931,1721452293540,-500.0,0.00033424,14]
[332692932,1721452293550,-500.0,0.00033424,14]
[332692933,1721452293560,-517.69418507,0.00033424,14]
[332692934,1721452293570,-500.0,0.00033424,14]
[332692935,1721452293579,-889.12,0.00033424,14]
[332692936,1721452293589,-500.0,0.00033424,14]
[332692937,1721452293602,-1138.51,0.00033424,14]
[332692938,1721452293611,-1961.02,0.00033424,14]
[332692939,1721452293622,-505.68154888,0.00033424,14]
[332692940,1721452293632,-500.71457888,0.00033424,14]
[332692941,1721452293642,-500.0,0.00033424,14]
[332692942,1721452293653,-500.0,0.00033424,14]
[332692943,1721452293663,-257.47,0.00033424,14]
[332692944,1721452293673,-500.0,0.00033424,14]
[332692945,1721452293683,-151.0,0.00033424,7]
[332692946,1721452293692,-500.0,0.00033424,14]
[332692947,1721452293702,-500.0,0.00033424,14]
[332692948,1721452293711,-500.0,0.00033424,14]
[332692949,1721452293720,-500.0,0.00033424,14]
[332692950,1721452293730,-500.0,0.00033424,14]
[332692951,1721452293739,-500.0,0.00033424,14]
[332692952,1721452293748,-448.13,0.00033424,14]
[332692953,1721452293758,-504.37,0.00033424,14]
[332692954,1721452293767,-2681.2,0.00033424,14]
[332692955,1721452293777,-500.0,0.00033424,14]
[332692956,1721452293787,-539.61,0.00033424,14]
[332692957,1721452293797,-504.63,0.00033424,14]
[332692958,1721452293807,-506.40817312,0.00033424,14]
[332692959,1721452293817,-500.0,0.00033424,14]
[332692960,1721452293826,-500.0,0.00033424,14]
[332692961,1721452293836,-500.0,0.00033424,14]
[332692962,1721452293846,-500.0,0.00033424,14]
[332692963,1721452293855,-500.0,0.00033424,14]
[332692964,1721452293865,-500.0,0.00033424,14]
[332692965,1721452293875,-500.0,0.00033424,14]
[332692966,1721452293885,-500.0,0.00033424,14]
[332692967,1721452293895,-1822.16,0.00033424,14]
[332692968,1721452293904,-534.1,0.00033424,14]
[332692969,1721452293914,-1103.03,0.00033424,14]
[332692970,1721452293924,-500.0,0.00033424,14]
[332692971,1721452293933,-500.0,0.00033424,14]
[332692972,1721452293943,-500.0,0.00033424,14]
[332692973,1721452293952,-500.0,0.00033424,14]
[332692974,1721452293962,-500.0,0.00033424,14]
[332692975,1721452293972,-500.0,0.00033424,14]
[332692976,1721452293981,-500.0,0.00033424,14]
[332692977,1721452293990,-500.0,0.00033424,14]
[332692978,1721452293999,-500.0,0.00033424,14]
[332692979,1721452294010,-515.51,0.00033424,14]
[332692980,1721452294019,-504.96408184,0.00033424,14]
[332692981,1721452294028,-500.0,0.00033424,14]
[332692982,1721452294038,-500.0,0.00033424,14]
[332692983,1721452294047,-500.0,0.00033424,14]
[332692984,1721452294057,-1292.47,0.00033424,14]
[332692985,1721452294067,-500.0,0.00033424,14]
[332692986,1721452294076,-1052.37,0.00033424,14]
[332692987,1721452294086,-500.0,0.00033424,14]
[332692988,1721452294096,-500.0,0.00033424,14]
[332692989,1721452294105,-501.9926303,0.00033424,14]
[332692990,1721452294115,-500.0,0.00033424,14]
[332692991,1721452294125,-4050.58,0.00033424,14]
[332692992,1721452294134,-500.0,0.00033424,14]
[332692993,1721452294144,-500.0,0.00033424,14]
[332692994,1721452294153,-500.0,0.00033424,14]
[332692995,1721452294163,-500.0,0.00033424,14]
[332692996,1721452294172,-500.0,0.00033424,14]
[332692997,1721452294182,-500.0,0.00033424,14]
[332692998,1721452294191,-500.0,0.00033424,14]
[332692999,1721452294201,-500.0,0.00033424,14]
[332693000,1721452294210,-500.0,0.00033424,14]
[332693001,1721452294219,-2985.13,0.00033424,14]
[332693002,1721452294228,-3121.76,0.00033424,14]
[332693003,1721452294237,-151.0,0.00033424,7]
[332693004,1721452294247,-1811.8,0.00033424,14]
[332693005,1721452294256,-500.0,0.00033424,14]
[332693006,1721452294265,-513.22414523,0.00033424,14]
[332693007,1721452294275,-5805.68,0.00033424,14]
[332693008,1721452294284,-500.0,0.00033424,14]
[332693009,1721452294293,-500.0,0.00033424,14]
[332693010,1721452294303,-500.0,0.00033424,14]
[332693011,1721452294312,-500.0,0.00033424,14]
[332693012,1721452294321,-500.0,0.00033424,14]
[332693013,1721452294331,-850.99,0.00033424,14]
[332693014,1721452294340,-500.0,0.00033424,14]
[332693015,1721452294350,-500.0,0.00033424,14]
[332693016,1721452294359,-500.0,0.00033424,14]
[332693017,1721452294369,-500.0,0.00033424,14]
[332693018,1721452294381,-500.0,0.00033424,14]
[332693019,1721452294390,-675.1,0.00033424,14]
[332693020,1721452294400,-3021.16,0.00033424,14]
[332693021,1721452294409,-1654.29,0.00033424,14]
[332693022,1721452294418,-1244.24,0.00033424,14]
[332693023,1721452294428,-500.0,0.00033424,14]
[332693024,1721452294438,-500.0,0.00033424,14]
[332693025,1721452294447,-1175.27,0.00033424,14]
[332693026,1721452294457,-1743.54,0.00033424,14]
[332693027,1721452294467,-500.0,0.00033424,14]
[332693028,1721452294476,-636.39,0.00033424,14]
[332693029,1721452294486,-500.0,0.00033424,14]
[332693030,1721452294499,-500.0,0.00033424,14]
[332693031,1721452294510,-2447.5,0.00033424,14]
[332693032,1721452294519,-6951.69,0.00033424,14]
[332693033,1721452294528,-2718.0,0.00033424,14]
[332693034,1721452294538,-500.0,0.00033424,14]
[332693035,1721452294548,-500.0,0.00033424,14]
[332693036,1721452294557,-500.0,0.00033424,14]
[332693037,1721452294567,-500.0,0.00033424,14]
[332693038,1721452294576,-500.0,0.00033424,14]
[332693039,1721452294585,-500.0,0.00033424,14]
[332693040,1721452294596,-908.8,0.00033424,14]
[332693041,1721452294606,-500.0,0.00033424,14]
[332693042,1721452294615,-1800.06,0.00033424,14]
[332693043,1721452294624,-975.93,0.00033424,14]
[332693044,1721452294633,-520.22601593,0.00033424,14]
[332693045,1721452294643,-1738.49,0.00033424,14]
[332693046,1721452294652,-5201.38,0.00033424,14]
[332693047,1721452294664,-500.0,0.00033424,14]
[332693048,1721452294674,-714.27,0.00033424,14]
[332693049,1721452294683,-567.14463767,0.00033424,14]
[332693050,1721452294693,-500.0,0.00033424,14]
[332693051,1721452294702,-9104.64,0.00033424,14]
[332693052,1721452294711,-525.83885421,0.00033424,14]
[332693053,1721452294720,-500.0,0.00033424,14]
[332693054,1721452294729,-500.0,0.00033424,14]
[332693055,1721452294738,-504.41,0.00033424,14]
[332693056,1721452294747,-500.0,0.00033424,2]
[332693057,1721452294756,-500.0,0.00033424,14]
[332693058,1721452294766,-500.0,0.00033424,14]
[332693059,1721452294776,-500.0,0.00033424,14]
[332693060,1721452294786,-500.0,0.00033424,14]
[332693061,1721452294796,-500.0,0.00033424,14]
[332693062,1721452294806,-500.0,0.00033424,14]
[332693063,1721452294816,-500.0,0.00033424,14]
[332693064,1721452294825,-500.0,0.00033424,14]
[332693065,1721452294834,-500.0,0.00033424,14]
[332693066,1721452294845,-5642.97,0.00033424,14]
[332693067,1721452294855,-1754.34,0.00033424,14]
[332693068,1721452294864,-1466.62,0.00033424,14]
[332693069,1721452294873,-1092.71,0.00033424,14]
[332693070,1721452294882,-500.0,0.00033424,14]
[332693071,1721452294893,-1704.32,0.00033424,14]
[332693072,1721452294902,-500.0,0.00033424,14]
[332693073,1721452294912,-500.0,0.00033424,14]
[332693074,1721452294921,-500.0,0.00033424,14]
[332693075,1721452294931,-500.0,0.00033424,7]
[332693076,1721452294940,-500.0,0.00033424,14]
[332693077,1721452294950,-500.0,0.00033424,14]
[332693078,1721452294959,-500.0,0.00033424,14]
[332693079,1721452294968,-4325.23,0.00033424,14]
[332693080,1721452294978,-500.0,0.00033424,14]